Cogmind - Beta 9.4 @@@ ROGUE MODE // 2020.02.28 @ 18:15:04 // Winter2019/RPGLIKE Player: Wizzeh Result: Destroyed by G-34 Mercenary with Small Laser Performance ------------- Evolutions (0) 0 Regions Visited (1) 200 Robots Destroyed (4) 20 Value Destroyed (101) 101 Prototype IDs (0) 0 Alien Tech Used (0) 0 Bonus (0) 0 TOTAL SCORE: 321 Bonus ------- None Cogmind --------- Core Integrity 0/600 Matter 300/300 Energy 250/250 System Corruption 1% Temperature Cool (6) Movement Rolling (100) Location -10/Materials Parts ------- > --- POWER (1) -------- Ion Engine > --- PROPULSION (2) --- Compact Wheel Compact Wheel > --- UTILITY (1) ------ (None) > --- WEAPON (1) ------- (None) > --- INVENTORY (0) ---- (None) Peak State ------------ > --- POWER ------------ Ion Engine > --- PROPULSION ------- Compact Wheel Compact Wheel > --- UTILITY ---------- (None) > --- WEAPON ----------- Medium Laser > --- INVENTORY -------- (None) [Rating: 4] Favorites ----------- Power Ion Engine Engine Ion Engine Propulsion Compact Wheel Wheel Compact Wheel Utility None Weapon Medium Laser Energy Gun Medium Laser Build | -11 -10 ------- Run | Scr Mat Slots Evolved 1 | 1 . Power . | . . Propulsion 1 | 1 . Utility . | . . Weapon . | . . Parts Attached 4 | 4 . Power 1 | 1 . Engine 1 | 1 . Core . | . . Reactor . | . . Propulsion 2 | 2 . Treads . | . . Leg . | . . Wheel 2 | 2 . Hover . | . . Flight . | . . Utility . | . . Device . | . . Storage . | . . Processor . | . . Hackware . | . . Protection . | . . Artifact . | . . Weapon 1 | 1 . Energy Gun 1 | 1 . Energy Cannon . | . . Ballistic Gun . | . . Ballistic Cannon . | . . Launcher . | . . Special Weapon . | . . Impact Weapon . | . . Slashing Weapon . | . . Piercing Weapon . | . . Special Melee Weapon . | . . Unidentified Prototypes . | . . Parts Lost 1 | . 1 Power . | . . Propulsion . | . . Utility . | . . Weapon 1 | . 1 Highest Loss Streak 1 | . 1 Average Slot Usage (%) 70 | . 70 Engine 20 | . 20 Wheel 40 | . 40 Energy Gun 10 | . 10 Naked Turns . | . . Heaviest Build 7 | 7 7 Greatest Support 32 | 32 32 Greatest Overweight (x) 1 | 1 . Average Overweight (x) . | . . Largest Inventory Capacity . | . . Average Capacity . | . . Most Carried . | . . Average Carried . | . . Final Capacity . | . . Final Carried . | . . Class Distribution -------------------- 100% | Mutant Dominant Class ---------------- Mutant | -10/Materials Resources | -11 -10 ----------- Run | Scr Mat Matter Collected 240 | 240 . Remotely . | . . Salvage Created 168 | . 168 Parts 7 | . 7 Haulers Intercepted . | . . Recyclers Shooed . | . . Parts Field Recycled . | . . Retrieved Matter . | . . Parts Self-Destructed . | . . Prevented . | . . Kills | -11 -10 ------- Run | Scr Mat Combat Hostiles Destroyed 4 | . 4 Melee 2 | . 2 Guns 2 | . 2 Classes Destroyed 2 | . 2 Swarmer 2 | . 2 Grunt 2 | . 2 Best Kill Streak 2 | . 2 Combat Bots Only 2 | . 2 Max Kills in Single Turn 1 | . 1 Gunslinging . | . . Exploded . | . . Melee 1 | . 1 Uniques/NPCs Destroyed . | . . Combat | -11 -10 -------- Run | Scr Mat Damage Taken 727 | . 727 Core 609 | . 609 Absorbed by Shields . | . . Redirected to Core 357 | . 357 Core Remaining (%) 100 | 100 . Volleys Fired 16 | . 16 Largest 1 | . 1 Hottest 50 | . 50 Shots Fired 16 | . 16 Gun 16 | . 16 Cannon . | . . Launcher . | . . Special . | . . Kinetic . | . . Thermal 16 | . 16 Explosive . | . . Electromagnetic . | . . Robot Hit Streak 4 | . 4 Robot Miss Streak 2 | . 2 Penetration Max . | . . Secondary Targets . | . . Shots Hit Robots 10 | . 10 Core Hits 15 | . 15 Critical Hits . | . . Critical Kills . | . . Critical Parts Destroyed . | . . Melee Attacks . | . . Impact . | . . Slashing . | . . Piercing . | . . Sneak Attacks . | . . Combat Hostiles . | . . Follow-up Attacks . | . . Damage Inflicted 162 | . 162 Guns 125 | . 125 Cannons . | . . Explosions . | . . Melee . | . . Ramming 37 | . 37 Kinetic . | . . Thermal 125 | . 125 Explosive . | . . Electromagnetic . | . . Impact . | . . Slashing . | . . Piercing . | . . Highest Corruption 1 | . 1 Average Corruption 1 | . 1 Corruption Purged . | . . Overload Shots . | . . Overflow Damage . | . . Projectiles . | . . Explosions . | . . Melee . | . . Knockbacks . | . . Impact . | . . Kinetic . | . . Secondary . | . . Self-Inflicted Damage 13 | . 13 Shots . | . . Rammed 23 | . 23 Targets Rammed 23 | . 23 Kicked . | . . Crushed . | . . Highest Temperature 259 | . 259 Average Temperature 129 | . 129 Received Heat Transfer 171 | . 171 Effects 1 | . 1 Interference 1 | . 1 Siege Activations . | . . Robots Corrupted . | . . Combat Hostiles . | . . Parts Fried . | . . Impact Corruptions . | . . Robots Melted . | . . Combat Hostiles . | . . Parts Melted . | . . Heat Transferred 370 | . 370 Parts Sabotaged . | . . Parts Stolen . | . . Parts Stripped . | . . Power Chain Reactions . | . . Missiles Intercepted . | . . Alert | -11 -10 ------- Run | Scr Mat Peak Influence 95 | . 95 Average Influence 39 | . 56 Maximum Alert Level . | . . Low Security (%) 100 | 100 100 Level 1 . | . . Level 2 . | . . Level 3 . | . . Level 4 . | . . Level 5 . | . . High Security . | . . Max Security . | . . Squads Dispatched 1 | . 1 Investigation . | . . Extermination . | . . Reinforcement 1 | . 1 Assault . | . . Garrison . | . . Intercept . | . . Construction Impeded . | . . Haulers Reinforced . | . . Stealth | -11 -10 --------- Run | Scr Mat Distress Signals 2 | . 2 Communications Jammed . | . . Distress Signals . | . . Times Spotted 9 | . 9 Peak Tracking Total 6 | . 6 Tactical Retreats . | . . Traps | -11 -10 ------- Run | Scr Mat Traps Triggered . | . . Indirectly . | . . Trap Hack Attempts . | . . Triggered . | . . Disarmed . | . . Reprogrammed . | . . Reused . | . . Traps Extracted . | . . Installed . | . . Triggered . | . . Machines | -11 -10 ---------- Run | Scr Mat Machines Disabled . | . . Max in Single Turn . | . . Machines Sabotaged . | . . Garrisons Compromised . | . . Overloaded Fab Kills . | . . Fab Network Shutdowns . | . . Hacking | -11 -10 --------- Run | Scr Mat Machines Accessed . | . . Terminals . | . . Fabricators . | . . Repair Stations . | . . Recycling Units . | . . Scanalyzers . | . . Garrison Access . | . . Total Hacks . | . . Successful . | . . Failed . | . . Catastrophic . | . . Database Lockouts . | . . Manual . | . . Terminals . | . . Fabricators . | . . Repair Stations . | . . Recycling Units . | . . Scanalyzers . | . . Garrison Access . | . . Terminal Hacks . | . . Fabricator Hacks . | . . Repair Station Hacks . | . . Recycling Unit Hacks . | . . Scanalyzer . | . . Garrison Access Hacks . | . . Unauthorized Hacks . | . . Terminals . | . . Fabricators . | . . Repair Stations . | . . Recycling Units . | . . Scanalyzers . | . . Garrison Access . | . . Data Cores Recovered . | . . Used . | . . Hacking Detections . | . . Full Trace Events . | . . Feedback Events . | . . Feedback Blocked . | . . Robot Schematics Acquired . | . . Robots Built . | . . Matter . | . . Time . | . . Total Robot Build Rating . | . . Part Schematics Acquired . | . . Parts Built . | . . Matter . | . . Time . | . . Total Part Build Rating . | . . Parts Repaired . | . . Time . | . . Parts Recycled . | . . Recycled Matter . | . . Retrieved Matter . | . . Retrieved Components . | . . Parts Scanalyzed . | . . Part Schematics Acquired . | . . Parts Damaged . | . . Bothacking | -11 -10 ------------ Run | Scr Mat Used RIF Installer . | . . Robots Hacked . | . . Non-combat . | . . Combat . | . . Robot Hacks Applied . | . . Relay Couplers Released . | . . Robots Rewired . | . . Allies Hacked . | . . Hacks Repelled . | . . Allies | -11 -10 -------- Run | Scr Mat Total Allies . | . . Largest Group . | . . Highest-Rated Group . | . . Highest-Rated Ally . | . . Total Orders . | . . Ally Attacks . | . . Total Damage . | . . Kills . | . . Allies Corrupted . | . . Allies Melted . | . . Intel | -11 -10 ------- Run | Scr Mat Robot Analysis Total . | . . Derelict Logs Recovered . | . . Drone Launches . | . . Drone Recoveries . | . . Exploration | -11 -10 ------------- Run | Scr Mat Turns Passed 142 | 43 99 Spaces Moved 85 | 41 44 Core 10 | 10 . Treads . | . . Legs . | . . Wheels 75 | 31 44 Hover . | . . Flight . | . . Fastest Speed 50 | 50 100 Average Speed 96 | 92 100 Slowest Speed 100 | 100 100 Overloaded Moves . | . . Propulsion Burnouts . | . . Robots Hopped . | . . Cave-ins Triggered . | . . Exploration Rate (%) 5 | 3 8 Regions Visited 1 Branch Regions . Pre-discovered Areas . | . . Known Exits Taken . | . . Unknown Exits Taken 1 | 1 . Scrap Searched . | . . Spaces Dug . | . . Terrain Destroyed . | . . Melee . | . . Projectile . | . . AOE . | . . Actions | -11 -10 --------- Run | Scr Mat Total 127 | 44 83 Wait . | . . Move 84 | 40 44 Hop . | . . Pick Up . | . . Fast Attach 4 | 4 . Attach . | . . Detach . | . . Swap . | . . Drop . | . . Fire 16 | . 16 Melee . | . . Ram 23 | . 23 Kick . | . . Crush . | . . Escape Stasis . | . . Rewire . | . . Trap . | . . Miscellaneous . | . . Route ------- -11/Scrapyard -10/Materials History --------- Turn | Location | Event 3 | -11/Scrapyard | Discovered new exit (range 16) 19 | -11/Scrapyard | Upgraded with Propulsion slot (x1) 44 | -11/Scrapyard | Entered Materials 94 | -10/Materials | Core integrity fell below 50% 118 | -10/Materials | Core integrity fell below 20% 143 | -10/Materials | Destroyed by G-34 Mercenary with Small Laser Last Messages --------------- 00099_ Med. Laser destroyed. 00102_ Slammed into S-10 Pest. 00104_ Slammed into G-47 Trooper. 00104_ Destabilizing: Short circuit. 00104_ Broken Com. Wheel permanently disabled. 00105_ Slammed into G-47 Trooper. 00105_ G-47 Trooper destroyed. [Achievement: Fist Fight] 00107_ Slammed into W-16 Scout. 00111_ Slammed into S-10 Pest. 00111_ Destabilizing: System corrupted (+1). 00112_ Slammed into S-10 Pest. 00115_ S-10 Pest destroyed. 00115_ Destabilizing: Core damaged (-24). 00116_ Slammed into S-10 Pest. 00131_ Destabilizing: Short circuit. 00131_ Broken Com. Wheel permanently disabled. 00132_ Slammed into S-10 Pest. 00136_ Slammed into W-16 Scout. 00137_ Slammed into G-34 Mercenary. Map ----- +----------------------------------------------------+ | ???????????????????????????????????? | | ???????????????????????????????????? | | ???????????????????????????????????? | | ???????????????????????????????????? | | ???????????????????????????????????? | | ???????????????????????????????????? | | ???????????????????????????????????? | | ???????????????????????????????????? | | ???????????????????????????????????? | | ???????????????????????????????????? | | ????????????????????????? ???????? | | ????????????????????????? #??????? | | ????????????????????????? #??????? | | ????????????????????????# #??????? | | ????????????????????????# #??????? | | ????????????????????????# #??????? | | ????????????????????????# ######## | | ????????????????????????# # # | | ????????????????????????# # # | | ????????????????????????+ # # | | ????????????????????????# # # | | ????????????????????????#w% # # | | ????????????????????????#%* # # | | ????????????????????????#== # # | | ????????????????????????# # # | | ????????????????????????#@% # # | | ????????????????????????#gg%#%% # | | ????????????????????????#%a%#%*% # | | ????????????????????????#%s!#%%[% # | | ????????????????????????#%%%+%%%% # | | ????????????????????????# %%#####+## | | ????????????????????????# %# # | | ????????????????????????# # # | | ????????????????????????# # ""# | | ????????????????????????# + T"# | | ????????????????????????# # ""# | | ????????????????????????# # # | | ????????????????????????############ | | ???????????????????????????????????? | | ???????????????????????????????????? | | ???????????????????????????????????? | | ???????????????????????????????????? | | ???????????????????????????????????? | | ???????????????????????????????????? | | ???????????????????????????????????? | | ???????????????????????????????????? | | | | | | | | | +----------------------------------------------------+ Best States ------------- Heat Dissipation 25 Energy Generation 10 Energy Capacity 250 Matter Stores 300 Matter Capacity 300 Sight Range 16 Terrain Scan Density 10 Evasion (%) 40 Item Schematics ----------------- None Robot Schematics ------------------ None Fabricated ------------ Nothing Alien Tech Used ----------------- None Achievements -------------- Fist Fight Challenges ------------ None RPGLIKE | -11 -10 --------- Run | Scr Mat Levels Raised . | . . XP Earned 3450 | 3000 450 XP Spent 500 | 500 . Upgrades 1 | 1 . Propulsion Slot 1 | 1 . Protomatter Created . | . . Protomatter Decayed . | . . Game ------ Seed DamperBottomlessStorm Manual? 0 Play Time 00:05:34 Cumulative 0.5 hours Start 2020.02.28 @ 18:11:22 End 2020.02.28 @ 18:15:04 Sessions 1 Manual Loads 0 Difficulty Rogue Special Mode Winter2019/RPGLIKE Game No. 6 Rogue 6 Adventurer 0 Explorer 0 Win Type - Total 0 Types 0/0/0/0/0/0/0 Lore% 5 Gallery% 8 Achievement% 11 Wizard Run 0 Options --------- ASCII 0 Keyboard 0 Movement Mouse Keybinds 0 Fullscreen 0 Font 28/Smallcaps Map View 76x50 Tactical HUD 1 Map Filters NONE Filters NONE Steam 1 RUN: e0f86999-5f7c-4d22-88b0-c605f345d34a